bitfinex-derivatives/quotes_SOLF0:USTF0_20241218
["timestamp","ask_amount","ask_price","bid_price","bid_amount"]
[1734559639804,11.0478454,208.28,208.11,2.975]
[1734559640003,4.26,208.27,208.16,5.77667365]
[1734559640294,11.0478454,208.29,208.16,11.0478454]
[1734559641197,4.26,208.31,208.19,11.0478454]
[1734559641599,2.4028,208.22,208.16,2.4034]
[1734559641899,11.0478454,208.29,208.17,11.0478454]
[1734559642100,11.0478454,208.29,208.15,5.77494359]
[1734559642300,11.0478454,208.26,208.15,5.77494359]
[1734559642496,11.0478454,208.23,208.1,15.3078454]
[1734559642702,2.4039,208.12,208.07,11.0478454]
[1734559642902,11.0478454,208.2,208.07,11.0478454]
[1734559643098,11.0478454,208.17,208.05,4.26]
[1734559643293,2.4042,208.1,208.05,4.26]
[1734559643500,11.0478454,208.2,208.07,16.73042656]
[1734559643693,5.687,208.25,208.1,11.0478454]
[1734559643694,11.0478454,208.23,208.1,11.0478454]
[1734559643895,2.4036,208.15,208.1,11.0478454]
[1734559644199,11.0478454,208.17,208.07,5.68258116]
[1734559644393,2.4043,208.09,208.03,15.3078454]
[1734559644599,11.0478454,208.17,208.03,15.3078454]
[1734559644794,4.26,208.19,208.06,11.0478454]
[1734559645000,11.0478454,208.17,208.06,5.68661914]
[1734559645201,11.0478454,208.17,208.03,11.0478454]
[1734559645504,2.4038,208.13,208.03,13.4526454]
[1734559645703,2.4038,208.13,208.02,10.1943]
[1734559645704,2.9883,208.18,208.06,11.0478454]
[1734559646205,11.0478454,208.17,208.02,2.9538]
[1734559646399,11.0478454,208.17,208.02,19.63613495]
[1734559646598,7.2483,208.18,208.02,19.63613495]
[1734559646599,2.9883,208.18,208.05,11.0478454]
[1734559646906,2.9883,208.18,208.08,11.0478454]
[1734559647097,2.9883,208.18,208.06,4.24]
[1734559647295,11.0478454,208.17,208.06,4.24]
[1734559647499,11.0478454,208.14,208.02,8.58828955]
[1734559647698,11.0478454,208.14,208.03,11.0478454]
[1734559648000,11.0478454,208.17,208.03,11.0478454]
[1734559648205,11.0478454,208.17,208.06,11.0478454]
[1734559648403,2.9883,208.18,208.06,11.0478454]
[1734559649105,11.0478454,208.2,208.07,4.24]
[1734559649505,11.0478454,208.2,208.07,7.364]
[1734559649708,15.2878454,208.23,208.09,11.0478454]
[1734559649904,15.2878454,208.23,208.12,11.0478454]
[1734559650203,4.24,208.23,208.07,3.124]
[1734559650401,11.0478454,208.17,208.07,3.124]
[1734559650606,2.9226,208.24,208.02,5.63448955]
[1734559650607,11.0478454,208.14,208.02,5.63448955]
[1734559650907,2.4044,208.07,208.02,5.63448955]
[1734559651107,10.2942,208.13,208.02,5.63448955]
[1734559651304,11.0478454,208.11,207.97,5.8949]
[1734559651503,11.0478454,208.08,207.97,5.8949]
[1734559651699,11.0478454,208.02,207.89,11.0478454]
[1734559651904,11.0478454,208.02,207.9,5.78304073]
[1734559652106,11.0478454,207.99,207.89,2.9645]
[1734559652302,11.0478454,208.05,207.93,11.0478454]
[1734559652498,11.0478454,208.08,207.96,11.0478454]
[1734559652702,5.73223127,208.1,207.99,11.0478454]
[1734559653105,11.0478454,208.11,207.99,11.0478454]
[1734559653306,11.0478454,208.19,208.05,11.0478454]
[1734559653604,2.4039,208.11,208.05,11.0478454]
[1734559653809,17.3399454,208.19,208.05,11.0478454]
[1734559654005,11.0478454,208.16,208.03,3.006]
[1734559654207,2.4044,208.07,208.03,3.006]
[1734559654405,4.24,208.12,208.0,5.77322526]
[1734559654606,11.0478454,208.13,208.0,5.77322526]
[1734559654808,15.2878454,208.13,208.0,5.77322526]
[1734559655006,2.4044,208.07,208.0,5.77322526]
[1734559655206,15.2878454,208.13,208.0,5.77322526]
[1734559655611,15.2878454,208.13,208.02,11.0478454]
[1734559656009,2.4043,208.08,208.02,11.0478454]
[1734559656205,2.4043,208.08,208.05,11.0478454]
[1734559656808,4.24,208.15,208.05,11.0478454]
[1734559657111,4.24,208.15,208.08,11.0478454]
[1734559657514,5.76976098,208.18,208.08,11.0478454]
[1734559657715,4.24,208.17,208.08,11.0478454]
[1734559658110,2.4039,208.11,208.08,11.0478454]
[1734559659005,4.24,208.17,208.08,11.0478454]
[1734559659212,5.76976098,208.18,208.05,11.0478454]
[1734559659410,4.24,208.16,208.02,11.0478454]
[1734559660015,15.2878454,208.16,208.02,11.0478454]
[1734559660407,2.4038,208.12,208.02,11.0478454]
[1734559660607,15.2878454,208.16,208.02,11.0478454]
[1734559661014,2.4044,208.07,208.02,11.0478454]
[1734559661213,5.76976098,208.18,208.02,11.0478454]
[1734559661419,6.2921,208.19,208.1,11.0478454]
[1734559662511,6.2921,208.19,208.07,11.0478454]
[1734559662706,11.0478454,208.16,208.04,3.1541]
[1734559663113,2.4038,208.12,208.02,11.0478454]
[1734559663315,11.0478454,208.16,208.05,11.0478454]
[1734559663518,11.0478454,208.16,208.02,11.0478454]
[1734559664408,11.0478454,208.13,207.99,5.9793]
[1734559664613,11.0478454,208.07,207.89,5.81479664]
[1734559664916,2.4061,207.93,207.89,5.81479664]
[1734559665214,11.0478454,208.04,207.91,11.0478454]
[1734559665413,2.4052,208.01,207.91,13.4540454]
[1734559665617,5.64455163,208.03,207.91,11.0478454]
[1734559666115,5.64455163,208.03,207.89,5.81479664]
[1734559666515,17.77169331,207.98,207.77,4.24]
[1734559666719,17.77169331,207.98,207.8,23.4047007]
[1734559666720,9.7259,207.97,207.8,23.4047007]
[1734559666919,9.7259,207.97,207.8,5.63300739]
[1734559667116,9.7259,207.97,207.79,5.81078855]
[1734559667314,17.77169331,207.94,207.75,17.77169331]
[1734559667817,2.9067,207.93,207.75,17.77169331]
[1734559668023,5.74847805,207.92,207.75,17.77169331]
[1734559668618,5.74847805,207.92,207.76,5.89987544]
[1734559669025,5.74847805,207.92,207.77,3.0111]
[1734559669320,2.9067,207.93,207.79,17.77169331]
[1734559669525,2.9067,207.93,207.8,3.15]
[1734559670624,2.4067,207.87,207.8,5.5574]
[1734559671918,2.4065,207.89,207.81,2.4073]
[1734559672123,2.4065,207.89,207.81,3.0155]
[1734559672320,4.24,207.94,207.81,3.0155]
[1734559672623,2.4067,207.87,207.81,5.4228]
[1734559673024,5.4859,207.97,207.81,3.0155]
[1734559673328,5.4859,207.97,207.82,17.77169331]
[1734559673525,2.9165,207.97,207.82,17.77169331]
[1734559674325,2.4062,207.92,207.86,2.4068]
[1734559675428,7.3109,208.01,207.86,17.77169331]
[1734559675626,3.0709,208.01,207.86,17.77169331]
[1734559675826,3.0709,208.01,207.87,4.24]
[1734559676231,2.4059,207.95,207.88,2.4065]
[1734559676625,3.0709,208.01,207.87,4.24]
[1734559676827,17.77169331,208.0,207.81,3.0155]
[1734559677029,17.77169331,208.0,207.82,4.24]
[1734559677328,2.4063,207.91,207.85,2.4069]
[1734559677731,17.77169331,208.0,207.82,4.24]
[1734559677929,17.77169331,208.0,207.88,2.4065]
[1734559678326,17.77169331,208.0,207.82,4.24]
[1734559678533,17.77169331,208.0,207.84,17.77169331]
[1734559678835,3.0955,208.02,207.84,17.77169331]
[1734559679531,22.01169331,208.04,207.84,17.77169331]
[1734559679831,22.01169331,208.04,207.82,4.24]
[1734559679832,30.50539331,208.08,207.88,17.77169331]
[1734559680027,17.77169331,208.01,207.82,4.24]
[1734559680231,2.4062,207.92,207.83,3.0353]
[1734559680435,4.24,208.0,207.83,3.0353]
[1734559680631,2.9821,207.99,207.83,3.0353]
[1734559681044,2.9821,207.99,207.86,2.4068]
[1734559681232,2.9821,207.99,207.83,3.0353]
[1734559681633,2.406,207.93,207.83,3.0353]
[1734559681833,2.9821,207.99,207.83,3.0353]
[1734559683135,2.4059,207.94,207.83,3.0353]
[1734559683633,2.9821,207.99,207.83,3.0353]
[1734559683833,2.9821,207.99,207.88,2.4065]
[1734559683834,2.4058,207.95,207.88,2.4065]
[1734559684042,2.9821,207.99,207.85,17.77169331]
[1734559684540,2.4059,207.94,207.9,2.4063]
[1734559684740,2.9821,207.99,207.9,2.4063]
[1734559685037,2.4058,207.95,207.89,4.24]
[1734559685234,17.77169331,207.96,207.83,3.0353]
[1734559685441,17.77169331,207.96,207.81,3.0155]
[1734559685637,8.6762,207.95,207.76,23.67156875]
[1734559685842,2.407,207.85,207.8,2.4074]
[1734559686342,2.407,207.85,207.77,3.1518]
[1734559686543,2.407,207.84,207.77,7.3918]
[1734559686739,4.24,207.93,207.82,2.4072]
[1734559686939,3.128,207.95,207.8,17.77169331]
[1734559687135,3.128,207.95,207.81,3.1468]
[1734559687535,3.128,207.95,207.82,3.1206]
[1734559687740,22.01169331,208.0,207.82,3.1206]
[1734559687943,22.01169331,208.0,207.84,17.77169331]
[1734559688244,22.01169331,208.0,207.85,4.24]
[1734559688445,2.406,207.93,207.85,4.24]
[1734559689150,4.24,208.0,207.84,17.77169331]
[1734559689344,2.4058,207.95,207.85,4.24]
[1734559689547,2.9938,208.02,207.85,4.24]
[1734559689741,2.9938,208.02,207.91,2.4061]
[1734559689939,2.9938,208.02,207.85,4.24]
[1734559690347,2.406,207.93,207.88,2.4065]
[1734559690846,20.76549331,208.02,207.87,17.77169331]
[1734559691042,5.75088675,208.04,207.87,17.77169331]
[1734559691249,5.75088675,208.04,207.88,3.1823]
[1734559691447,5.75088675,208.04,207.93,2.4059]
[1734559691448,2.4054,207.99,207.93,2.4059]
[1734559691849,2.4054,207.99,207.94,2.4058]
[1734559692240,5.75088675,208.04,207.94,2.4058]
[1734559692541,4.24,208.05,207.88,8.8497465]
[1734559692750,4.24,208.05,207.95,2.4057]
[1734559692938,4.24,208.05,207.88,8.8497465]
[1734559693145,4.24,208.05,207.93,2.4059]
[1734559693339,2.4054,207.99,207.93,2.4059]
[1734559694044,2.4054,207.99,207.88,5.6674465]
[1734559694045,4.24,208.05,207.88,5.6674465]
[1734559694240,17.77169331,208.02,207.84,4.24]
[1734559694439,2.4061,207.93,207.84,4.24]
[1734559694743,17.77169331,208.02,207.87,2.4066]
[1734559695143,17.77169331,208.02,207.83,17.77169331]
[1734559695352,17.77169331,208.02,207.83,20.17879331]
[1734559695647,2.4063,207.91,207.83,20.17879331]
[1734559695848,4.24,207.98,207.83,20.17879331]
[1734559696239,2.9908,207.97,207.83,20.17879331]
[1734559696552,2.9908,207.97,207.84,2.407]
[1734559696939,2.9908,207.97,207.83,17.77169331]
[1734559697142,2.9908,207.97,207.86,2.4068]
[1734559697453,5.78126548,208.05,207.87,17.77169331]
[1734559697454,4.24,208.04,207.87,17.77169331]
[1734559697744,4.24,208.04,207.88,4.24]
[1734559698145,4.24,208.04,207.85,5.81902544]
[1734559698348,17.77169331,208.02,207.85,5.81902544]
[1734559698548,2.4062,207.91,207.86,2.4067]
[1734559698750,17.77169331,208.02,207.85,5.81902544]
[1734559698950,4.24,208.04,207.88,17.77169331]
[1734559699144,4.24,208.04,207.88,22.01169331]
[1734559699351,17.77169331,208.02,207.85,5.81902544]
[1734559699742,2.4065,207.89,207.85,5.81902544]
[1734559699947,17.77169331,208.02,207.85,5.81902544]
[1734559700147,4.24,208.04,207.85,5.81902544]
[1734559700349,2.4062,207.92,207.86,2.4067]
[1734559700646,17.77169331,208.02,207.85,23.59071875]
[1734559700850,2.4061,207.92,207.87,2.4067]
[1734559701153,17.77169331,208.02,207.87,2.4067]
[1734559701451,2.4055,207.98,207.87,2.4067]
[1734559701652,17.77169331,208.02,207.87,2.4067]
[1734559701949,2.406,207.94,207.82,3.1206]
[1734559702254,4.24,207.97,207.82,3.1206]
[1734559702443,7.3995,207.97,207.82,3.1206]
[1734559702648,7.3995,207.97,207.82,5.5278]
[1734559703352,7.3995,207.97,207.84,5.82597401]
[1734559703855,2.4059,207.94,207.84,5.82597401]
[1734559704049,7.3995,207.97,207.84,5.82597401]
[1734559705856,2.4059,207.94,207.85,2.4068]
[1734559706147,7.3995,207.97,207.84,5.82597401]
[1734559706545,7.3995,207.97,207.85,2.4068]
[1734559706748,3.1595,207.97,207.85,2.4068]
[1734559707553,3.1595,207.97,207.84,5.82597401]
[1734559707749,2.4059,207.94,207.84,5.82597401]
[1734559707951,3.1595,207.97,207.84,5.82597401]
[1734559709551,2.4067,207.87,207.84,5.82597401]
[1734559710654,3.1595,207.97,207.84,5.82597401]
[1734559711455,2.4067,207.87,207.84,5.82597401]
[1734559712452,2.4068,207.86,207.84,5.82597401]
[1734559713055,3.1595,207.97,207.82,17.11899576]
[1734559713358,3.1595,207.97,207.82,3.1206]
[1734559714055,5.64481888,207.94,207.82,3.1206]
[1734559714951,2.4068,207.86,207.82,5.5277]
[1734559715360,3.1595,207.97,207.82,3.1206]
[1734559716053,2.4068,207.86,207.82,14.23717885]
[1734559716552,2.4069,207.85,207.82,14.23717885]
[1734559716757,11.11657885,207.96,207.82,14.23717885]
[1734559719160,2.4069,207.85,207.82,14.23717885]
[1734559720056,4.24,207.94,207.82,14.23717885]
[1734559720453,10.04050238,207.94,207.82,14.23717885]
[1734559720654,4.24,207.94,207.82,14.23717885]
[1734559721363,4.24,207.94,207.83,2.407]
[1734559721564,3.1595,207.97,207.85,11.11657885]
[1734559721756,3.1595,207.97,207.88,11.11657885]
[1734559721954,2.4062,207.91,207.88,11.11657885]
[1734559722159,3.1595,207.97,207.88,11.11657885]
[1734559722354,0.23476,207.98,207.88,15.35657885]
[1734559722554,0.23476,207.98,207.91,11.11657885]
[1734559722759,0.23476,207.98,207.92,2.9711]
[1734559723162,0.23476,207.98,207.93,2.4059]
[1734559723460,0.23476,207.98,207.92,6.1031]
[1734559723961,2.4055,207.97,207.92,8.509]
[1734559724564,2.4055,207.97,207.93,4.24]
[1734559724867,0.23476,207.98,207.95,2.4057]
[1734559725070,0.23476,207.98,207.94,11.11657885]
[1734559725665,0.23476,207.98,207.95,5.64499114]
[1734559726059,11.11657885,208.08,207.95,5.64499114]
[1734559726262,11.11657885,208.08,207.96,2.4056]
[1734559726664,11.11657885,208.08,207.97,11.11657885]
[1734559727070,2.405,208.02,207.97,11.11657885]
[1734559727369,11.11657885,208.08,207.97,11.11657885]
[1734559728369,2.4051,208.01,207.97,11.11657885]
[1734559728869,11.11657885,208.08,207.97,11.11657885]
[1734559729168,2.4049,208.03,207.97,13.52207885]
[1734559729360,11.11657885,208.11,207.97,11.11657885]
[1734559729560,10.03892853,208.12,207.95,5.64499114]
[1734559729759,11.11657885,208.06,207.92,6.1031]
[1734559729965,10.03892853,208.12,207.92,2.9711]
[1734559729966,11.11657885,208.03,207.92,2.9711]
[1734559730165,11.11657885,208.0,207.88,14.04547885]
[1734559730467,2.406,207.93,207.88,14.04547885]
[1734559731168,2.4061,207.92,207.88,14.04547885]
[1734559732666,2.4061,207.92,207.89,5.66902421]
[1734559732966,2.4068,207.86,207.81,16.40559576]
[1734559733167,2.4068,207.86,207.81,8.4552]
[1734559734167,4.24,207.96,207.82,2.4072]
[1734559735274,4.24,207.96,207.83,5.81615528]
[1734559735875,4.24,207.96,207.83,8.22315528]
[1734559736571,2.4065,207.88,207.83,8.22315528]
[1734559737568,4.24,207.96,207.83,5.81615528]
[1734559737873,23.65933802,207.97,207.83,5.81615528]
[1734559738268,23.65933802,207.97,207.83,8.22325528]
[1734559738774,23.65933802,207.97,207.83,5.81615528]
[1734559738977,2.4063,207.9,207.85,2.4068]
[1734559739469,2.4062,207.91,207.87,2.4066]
[1734559739666,2.4062,207.91,207.83,23.60508447]
[1734559740377,2.4062,207.91,207.86,2.4066]
[1734559740773,2.4062,207.91,207.83,23.60508447]
[1734559741078,10.1250826,207.99,207.88,2.4065]
[1734559741580,10.1250826,207.99,207.87,2.4066]
[1734559742073,10.1250826,207.99,207.83,23.60508447]
[1734559742577,2.4067,207.87,207.83,23.60508447]
[1734559742774,2.4067,207.87,207.83,26.01218447]
[1734559742968,10.1250826,207.99,207.83,23.60508447]
[1734559743168,2.4067,207.87,207.83,23.60508447]
[1734559743670,2.4061,207.92,207.83,23.60508447]
[1734559743870,5.9050826,207.99,207.83,23.60508447]
[1734559744072,5.9050826,207.99,207.85,2.4068]
[1734559744470,2.4063,207.9,207.85,2.4068]
[1734559745281,2.4065,207.89,207.85,2.4068]
[1734559746682,5.9050826,207.99,207.83,27.82508447]
[1734559747186,23.69401179,207.99,207.83,27.82508447]
[1734559747382,23.69401179,207.99,207.83,30.23208447]
[1734559747783,23.69401179,207.99,207.83,27.82508447]
[1734559747981,2.4067,207.87,207.83,27.82508447]
[1734559748984,23.69401179,207.99,207.86,2.4067]
[1734559749885,23.69401179,207.99,207.83,27.82508447]
[1734559749886,2.4057,207.96,207.83,27.82508447]
[1734559750087,23.69401179,207.99,207.83,27.82508447]
[1734559750088,3.0545,208.02,207.87,17.78892919]
[1734559750485,2.4056,207.97,207.88,3.1186]
[1734559750790,44.54589596,208.03,207.91,17.78892919]
[1734559750989,2.4058,207.94,207.92,2.9227]
[1734559751590,2.4059,207.93,207.92,2.9227]
[1734559752691,2.4059,207.93,207.88,5.5251]
[1734559753089,2.4059,207.93,207.88,3.1186]
[1734559754292,2.4059,207.93,207.89,2.4063]
[1734559756187,4.22,208.01,207.9,11.11138884]
[1734559756587,55.6572848,208.03,207.91,3.1181]
[1734559756785,133.10367187,208.15,207.91,3.1181]
[1734559756786,11.11138884,208.06,207.93,11.11138884]
[1734559756992,5.7621,208.1,207.96,11.11138884]
[1734559756993,11.11138884,208.09,207.96,11.11138884]
[1734559757291,2.4046,208.05,207.97,3.1065]
[1734559757490,2.4046,208.05,207.97,10.2446]
[1734559758288,2.4046,208.05,208.0,2.4051]
[1734559758487,11.11138884,208.09,207.97,10.2446]
[1734559758790,2.4044,208.06,208.01,2.4049]
[1734559759188,11.11138884,208.09,207.97,10.2446]
[1734559759494,11.11138884,208.09,207.97,6.0246]
[1734559759695,2.4048,208.03,207.97,6.0246]
[1734559759995,11.11138884,208.09,207.97,6.0246]
[1734559761196,11.11138884,208.06,207.97,3.1065]
[1734559761593,11.11138884,208.03,207.91,3.1181]
[1734559761792,11.11138884,208.03,207.91,6.2441]
[1734559762194,2.4055,207.97,207.92,2.4059]
[1734559764301,2.4055,207.97,207.93,2.4059]
[1734559765597,11.11138884,208.06,207.93,11.11138884]
[1734559766094,2.4049,208.03,207.96,2.4056]
[1734559766289,2.4049,208.03,207.93,11.11138884]
[1734559766290,11.11138884,208.06,207.93,11.11138884]
[1734559767495,2.4055,207.97,207.93,2.4059]
[1734559771099,2.4053,207.99,207.94,2.4057]
[1734559771303,11.11138884,208.06,207.94,11.11138884]
[1734559771502,15.33138884,208.09,207.94,11.11138884]
[1734559771904,2.4047,208.04,207.94,11.11138884]
[1734559772103,11.11138884,208.09,207.97,11.11138884]
[1734559772711,11.11138884,208.09,207.99,2.4051]
[1734559774407,2.4048,208.03,207.99,2.4051]
[1734559774609,11.11138884,208.06,207.94,11.11138884]
[1734559775108,11.11138884,208.03,207.91,10.4641]
[1734559775508,11.11138884,208.03,207.91,6.2441]
[1734559775807,11.11138884,208.03,207.91,8.6502]
[1734559776208,11.11138884,208.03,207.9,3.1232]
[1734559776209,11.11138884,208.0,207.89,13.51768884]
[1734559776507,11.11138884,208.0,207.86,11.11138884]
[1734559777103,11.11138884,208.0,207.88,5.85607847]
[1734559777504,11.11138884,207.97,207.84,3.1166]
[1734559777810,11.11138884,207.94,207.84,3.1166]
[1734559778407,2.4067,207.87,207.84,3.1166]
[1734559779310,2.4068,207.86,207.84,3.1166]
[1734559779511,11.11138884,207.94,207.84,3.1166]
[1734559780211,11.11138884,207.94,207.8,11.11138884]
[1734559780406,3.0683,207.93,207.8,11.11138884]
[1734559780710,11.11138884,207.91,207.8,11.11138884]
[1734559781210,11.11138884,207.91,207.8,16.81857208]
[1734559782409,2.407,207.84,207.8,16.81857208]
[1734559783506,2.407,207.84,207.8,19.22597208]
[1734559783914,2.407,207.84,207.8,16.81857208]
[1734559784209,2.4072,207.82,207.8,5.70718324]
[1734559784405,11.11138884,207.91,207.8,5.70718324]
[1734559785410,2.4071,207.83,207.8,5.70718324]
[1734559785912,2.4071,207.83,207.8,16.81857208]
[1734559787408,11.11138884,207.91,207.8,16.81857208]
[1734559787712,2.4072,207.82,207.8,16.81857208]
[1734559787913,11.11138884,207.91,207.8,16.81857208]
[1734559788114,11.11138884,207.91,207.8,5.70718324]
[1734559788814,2.4071,207.83,207.8,5.70718324]
[1734559790007,2.4072,207.82,207.8,5.70718324]
[1734559793117,11.11138884,207.91,207.8,5.70718324]
[1734559795319,2.4072,207.83,207.8,5.70718324]
[1734559796015,11.11138884,207.91,207.8,5.70718324]
[1734559796317,11.11138884,207.81,207.65,53.43980195]
[1734559796507,11.11138884,207.81,207.68,5.91345064]
[1734559796713,11.11138884,207.81,207.69,11.11138884]
[1734559796917,11.11138884,207.78,207.68,10.13345064]
[1734559797115,2.4087,207.69,207.66,53.43980195]
[1734559797309,11.11138884,207.75,207.66,53.43980195]
[1734559797511,11.11138884,207.75,207.65,3.0042]
[1734559797715,2.4091,207.66,207.65,3.0042]
[1734559797925,11.11138884,207.75,207.65,3.0042]
[1734559798113,11.11138884,207.78,207.65,3.0042]
[1734559798312,15.31138884,207.78,207.65,3.0042]
[1734559798713,15.31138884,207.78,207.64,5.78010937]
[1734559799018,11.11138884,207.74,207.64,5.78010937]
[1734559799316,2.4092,207.65,207.61,15.31138884]
[1734559799509,11.11138884,207.74,207.61,15.31138884]
[1734559799713,15.31138884,207.78,207.63,5.64827014]
[1734559800112,15.31138884,207.78,207.64,11.11138884]
[1734559800319,15.31138884,207.78,207.64,17.40208884]
[1734559800921,2.4087,207.69,207.64,19.81128884]
[1734559801317,2.4089,207.67,207.64,17.40208884]
[1734559801516,2.4089,207.67,207.64,6.2907]
[1734559801915,15.31138884,207.78,207.64,6.2907]
[1734559802113,2.4091,207.66,207.64,6.2907]
[1734559802418,2.4091,207.66,207.64,3.2034]
[1734559803030,2.4092,207.65,207.64,3.2034]
[1734559803211,4.2,207.78,207.64,3.2034]
[1734559803412,11.11138884,207.74,207.64,3.2034]
[1734559803620,2.4092,207.65,207.64,3.2034]
[1734559804215,11.11138884,207.74,207.62,3.0873]
[1734559804415,11.11138884,207.68,207.53,6.1606]
[1734559804623,11.11138884,207.68,207.53,9.2299]
[1734559805126,2.4093,207.64,207.54,2.4104]
[1734559805420,16.49092629,207.72,207.52,5.85207204]
[1734559805724,11.11138884,207.67,207.54,2.4104]
[1734559806021,11.11138884,207.67,207.55,2.9207]
[1734559806222,11.11138884,207.64,207.55,2.9207]
[1734559808025,2.4096,207.62,207.55,2.9207]
[1734559808324,11.11138884,207.64,207.55,2.9207]
[1734559808523,2.4097,207.61,207.55,2.9207]
[1734559808822,11.11138884,207.67,207.55,2.9207]
[1734559809021,11.11138884,207.7,207.56,17.12588884]
[1734559809324,2.4092,207.65,207.56,21.32588884]
[1734559809523,11.11138884,207.7,207.56,21.32588884]
[1734559809720,2.4095,207.63,207.58,2.41]
[1734559810022,11.11138884,207.7,207.56,21.32588884]
[1734559810628,11.11138884,207.7,207.59,2.4098]
[1734559811125,2.4096,207.62,207.57,2.41]
[1734559811325,11.11138884,207.67,207.56,10.2145]
[1734559812326,11.11138884,207.67,207.56,21.32588884]
[1734559812627,2.4094,207.64,207.58,2.4099]
[1734559813121,2.4094,207.63,207.58,2.4099]
[1734559813525,11.11138884,207.7,207.56,21.32588884]
[1734559815020,2.4093,207.64,207.56,21.32588884]
[1734559815225,11.11138884,207.7,207.56,21.32588884]
[1734559815421,11.11138884,207.7,207.56,10.2145]
[1734559815721,11.11138884,207.64,207.56,6.0145]
[1734559816119,2.4096,207.62,207.56,6.0145]
[1734559816319,11.11138884,207.64,207.56,6.0145]
[1734559816625,11.11138884,207.7,207.56,6.0145]
[1734559816928,2.4097,207.61,207.56,6.0145]
[1734559817423,2.4097,207.61,207.56,8.4247]
[1734559818128,3.1145,207.73,207.56,6.0145]
[1734559818330,3.1145,207.73,207.6,11.11138884]
[1734559819332,2.409,207.67,207.63,2.4093]
[1734559819627,11.11138884,207.7,207.61,4.2]
[1734559819925,2.4093,207.64,207.61,4.2]
[1734559820525,11.11138884,207.7,207.61,4.2]
[1734559820733,2.4095,207.63,207.58,2.4099]
[1734559821126,2.4095,207.63,207.59,2.4098]
[1734559821430,11.11138884,207.7,207.57,11.11138884]
[1734559821622,7.3145,207.73,207.6,2.4096]
[1734559821821,2.4089,207.68,207.63,11.11138884]
[1734559822731,2.4089,207.68,207.64,2.4093]
[1734559823037,2.4089,207.68,207.64,5.6174]
[1734559823331,11.11138884,207.76,207.64,3.2081]
[1734559823830,11.11138884,207.76,207.64,5.6173]
[1734559824638,2.4088,207.68,207.64,5.6173]
[1734559825432,11.11138884,207.76,207.64,3.2081]
[1734559826140,2.4088,207.69,207.64,5.6174]
[1734559827641,2.9633,207.78,207.66,11.11138884]
[1734559828042,11.11138884,207.82,207.69,11.11138884]
[1734559828234,2.4078,207.78,207.72,2.4083]
[1734559828434,15.31138884,207.85,207.72,11.11138884]
[1734559828837,6.1029,207.87,207.75,11.11138884]
[1734559829037,11.11138884,207.91,207.78,11.11138884]
[1734559829241,11.11138884,207.91,207.79,4.2]
[1734559829647,11.11138884,207.88,207.79,4.2]
[1734559829945,11.11138884,207.85,207.74,3.1278]
[1734559830545,4.2,207.89,207.74,3.1278]
[1734559830738,4.2,207.89,207.75,11.11138884]
[1734559830942,15.31138884,207.89,207.75,11.11138884]
[1734559831141,15.31138884,207.89,207.77,2.4078]
[1734559831847,15.31138884,207.89,207.75,11.11138884]
[1734559832051,15.31138884,207.89,207.76,2.4079]
[1734559832949,2.4073,207.82,207.76,2.4079]
[1734559833543,2.4073,207.82,207.77,2.4078]
[1734559834652,15.31138884,207.89,207.75,11.11138884]
[1734559834653,2.4076,207.79,207.75,11.11138884]
[1734559834950,2.4076,207.79,207.74,11.18026457]
[1734559835149,2.4076,207.79,207.75,11.11138884]
[1734559836247,2.4076,207.79,207.75,13.51938884]
[1734559836751,2.4076,207.79,207.76,4.2]
[1734559839351,16.89164878,207.92,207.78,11.11138884]
[1734559839946,2.407,207.84,207.79,2.4075]
[1734559840145,11.11138884,207.89,207.76,4.2]
[1734559840342,2.4078,207.78,207.74,8.77226457]
[1734559840647,11.11138884,207.8,207.66,4.2]
[1734559841152,11.11138884,207.8,207.68,11.11138884]
[1734559841848,15.31138884,207.83,207.69,5.79873151]
[1734559842249,15.31138884,207.83,207.69,8.20733151]
[1734559842853,2.4083,207.73,207.69,8.20733151]
[1734559843056,11.11138884,207.8,207.68,11.11138884]
[1734559843555,2.4086,207.7,207.68,11.11138884]
[1734559843755,11.11138884,207.77,207.68,5.8515589]
[1734559843953,2.9349,207.76,207.68,5.8515589]
[1734559844155,6.0162,207.76,207.68,5.8515589]